Cogmind - Beta 16 @@@ ROGUE MODE // 2025.12.08 @ 16:41:44 Player: AngelSpirit Result: Destroyed by P-80 Master with Gamma Rifle Performance ------------- Evolutions (7) 3500 Regions Visited (17) 3400 Robots Destroyed (235) 1175 Value Destroyed (11411) 11411 Prototype IDs (64) 1280 Alien Tech Used (2) 400 Bonus (4684) 4684 TOTAL SCORE: 25850 Bonus ------- High Alert Combat Kills 914 Follower Combat Kills 1320 Registered with UFD 300 Met Optimus in HQ 500 Met Zhirov 300 Met Warlord at Base 500 MAIN.C Attacked Warlord 500 Warlord Defense Kills 362 Friendly Fire -12 Cogmind --------- Core Integrity 0/1300 Matter 160/300 Energy 72/100 System Corruption 9% Temperature Cool (0) Movement Hovering (116) Ox1 Location -3/Research Parts ------- > --- POWER (2) -------- (None) > --- PROPULSION (5) --- Linear Gravjet Linear Gravjet > --- UTILITY (10) ----- Advanced Sensor Array Advanced Signal Interpreter Advanced Launcher Guidance Computer Hardened Light Armor Plating Graphene Brace Experimental Shield Generator Advanced Hacking Suite Improved System Shield Advanced System Shield > --- WEAPON (4) ------- Advanced Micro-nuke Launcher Powered Hammer > --- INVENTORY (5) ---- Light Antimatter Reactor Micro Antimatter Reactor Improved Matter Compressor (300) Enhanced Nova Cannon Peak State ------------ > --- POWER ------------ Light Particle Reactor Quantum Reactor > --- PROPULSION ------- Spiked Medium Treads Heavy Treads Advanced Myomer Leg Improved Thunder Leg > --- UTILITY ---------- Advanced Cryofiber Web Huge Storage Unit Long-range Sensor Array Advanced Signal Interpreter Surveybot 17 Chip Advanced Targeting Computer Advanced Recoil Stabilizer Gun Armor Advanced Hacking Suite Advanced Hacking Suite > --- WEAPON ----------- Heavy Plasma Cannon Hypervelocity Coil Gun Railgun Railgun Bore Cannon > --- INVENTORY -------- Antimatter Reactor Biometal Leg Advanced Heat Sink Advanced Coolant Injector Advanced Energy Well Matter Compressor Improved Matter Compressor Advanced Sensor Array Makeshift Sensor Array Advanced Signal Interpreter Advanced Signal Interpreter Improved Launcher Guidance Computer Advanced Particle Charger Experimental Core Shielding Graphene Brace Advanced Hacking Suite Advanced System Shield Improved System Guard Transdimensional Reconstructor Plasma Rifle Micro-nuke Launcher Vortex Catalyst Activator Improved Remote Datajack Improved Plasma Cutter [Rating: 154] Favorites ----------- Power Quantum Reactor Engine Makeshift Power Source Power Core Neutrino Core Reactor Quantum Reactor Propulsion Armored Wheel Treads Heavy Treads Leg Advanced Myomer Leg Wheel Armored Wheel Hover Unit Linear Gravjet Utility Advanced Hacking Suite Device Advanced Cooling System Storage Huge Storage Unit Processor Advanced Signal Interpreter Hackware Advanced Hacking Suite Protection Hardened Heavy Armor Plating Weapon Heavy Plasma Cannon Energy Gun Gatling Laser Energy Cannon Heavy Plasma Cannon Ballistic Gun Heavy Battle Rifle Ballistic Cannon Advanced Assault Cannon Launcher Thermoblaster Special Weapon Improved Remote Datajack Impact Weapon Powered Hammer Build | -11 -10 -10 -7 -7 -5 -5 -5 -5 -5 -5 -4 -4 -4 -4 -4 -3 -3 ------- Run | Yrd Mat Sub Rec Scr Fac Was Fac Upp Upp War Pro Fac Upp Upp Zhi Pro Res Slots Evolved 14 | . . . . . 10 . . . . . . 2 . . . . 2 Power 1 | . . . . . . . . . . . . . . . . . 1 Propulsion 3 | . . . . . 2 . . . . . . . . . . . 1 Utility 8 | . . . . . 7 . . . . . . 1 . . . . . Weapon 2 | . . . . . 1 . . . . . . 1 . . . . . Parts Attached 268 | 6 11 21 8 7 16 4 33 1 1 9 5 48 3 13 4 4 74 Power 25 | 1 1 4 1 2 . . 1 1 . 2 . 2 . . 1 . 9 Engine 10 | 1 1 4 . 2 . . . . . 1 . . . . . . 1 Core 4 | . . . 1 . . . 1 1 . 1 . . . . . . . Reactor 11 | . . . . . . . . . . . . 2 . . 1 . 8 Propulsion 76 | 2 2 8 2 3 4 1 8 . . 2 1 14 . 2 1 . 26 Treads 8 | . . . . 2 . 1 . . . . . 2 . 2 . . 1 Leg 9 | . . . . . . . . . . . . 1 . . 1 . 7 Wheel 50 | 2 2 8 2 1 2 . 8 . . 2 1 11 . . . . 11 Hover 9 | . . . . . 2 . . . . . . . . . . . 7 Flight . | . . . . . . . . . . . . . . . . . . Utility 101 | 1 5 2 4 2 9 2 15 . 1 3 3 18 3 5 2 3 23 Device 46 | . 2 . 2 . 4 1 9 . . 1 1 10 1 3 . 2 10 Storage 7 | 1 1 . . . . . 2 . . . . . . . 1 . 2 Processor 16 | . . . . . 1 . 3 . . . 1 3 . 2 . 1 5 Hackware 10 | . . . 1 . 4 . . . . 1 . 1 1 . . . 2 Protection 22 | . 2 2 1 2 . 1 1 . 1 1 1 4 1 . 1 . 4 Artifact . | . . . . . . . . . . . . . . . . . . Weapon 66 | 2 3 7 1 . 3 1 9 . . 2 1 14 . 6 . 1 16 Energy Gun 23 | 1 . 3 . . 2 . 5 . . 1 . 5 . . . 1 5 Energy Cannon 11 | . . 1 . . 1 . 3 . . . . 4 . . . . 2 Ballistic Gun 17 | 1 3 2 . . . . . . . . . 2 . 4 . . 5 Ballistic Cannon 6 | . . 1 1 . . . . . . 1 . 1 . 1 . . 1 Launcher 7 | . . . . . . 1 . . . . 1 2 . 1 . . 2 Special Weapon 1 | . . . . . . . 1 . . . . . . . . . . Impact Weapon 1 | . . . . . . . . . . . . . . . . . 1 Slashing Weapon . | . . . . . . . . . . . . . . . . . . Piercing Weapon . | . . . . . . . . . . . . . . . . . . Special Melee Weapon . | . . . . . . . . . . . . . . . . . . Unidentified Prototypes 23 | . . . . . 2 1 5 . . 2 . 2 . . 4 . 7 Parts Lost 99 | . . 9 . . . . 4 1 . 2 1 21 3 5 . . 53 Power 10 | . . 2 . . . . . 1 . . . . . . . . 7 Propulsion 39 | . . 3 . . . . . . . 1 1 8 2 3 . . 21 Utility 17 | . . . . . . . 3 . . . . 4 . 1 . . 9 Weapon 33 | . . 4 . . . . 1 . . 1 . 9 1 1 . . 16 Highest Loss Streak 15 | . . 5 . . . . 2 1 . 1 1 7 1 5 . . 15 To Critical Strikes 3 | . . . . . . . . . . . . 1 . . . . 2 Average Backups 18 | . 8 15 15 17 12 15 18 24 24 23 23 21 22 21 23 23 16 Power 1 | . 1 1 1 . . 1 1 1 1 1 1 1 2 2 1 1 . Propulsion 1 | . 3 3 1 . . 1 1 4 4 3 1 . 1 . . . . Utility 11 | . 3 8 10 11 7 8 11 13 13 13 14 13 15 15 15 15 11 Weapon 3 | . . 1 2 4 3 4 3 4 4 5 5 3 2 2 4 4 1 Tool/Special . | . . . . . . . . . . . . . . . . . . Unused Backups 51 | . 2 . 2 12 1 . 11 . . 1 . 3 1 3 1 1 13 Power 5 | . 1 . . 1 . . 1 . . . . 1 . . . . 1 Propulsion 5 | . . . . 2 . . 2 . . . . . . . . . 1 Utility 29 | . 1 . 2 6 . . 6 . . . . 2 1 2 1 . 8 Weapon 11 | . . . . 3 1 . 2 . . 1 . . . 1 . 1 2 Tool/Special 1 | . . . . . . . . . . . . . . . . . 1 Average Slot Usage (%) 87 | . 93 98 82 83 79 84 85 93 94 93 93 90 87 76 70 93 82 Engine 4 | . 14 13 2 13 5 5 . . . . . . . . . . . Core 1 | . . . 11 . . . 4 4 5 4 5 4 . . . . . Reactor 1 | . . . . . . . . . . . . . 5 5 5 5 5 Treads 2 | . . . . 5 5 5 . . . . . . . 5 10 10 3 Wheel 15 | . 28 27 16 14 8 11 22 23 23 23 22 19 16 . . . 5 Device 11 | . 1 11 . . 7 6 14 23 23 23 22 20 15 15 12 15 9 Storage 7 | . 14 14 14 13 5 5 5 5 5 5 5 5 5 5 5 5 2 Processor 6 | . . . . . 5 1 4 5 5 5 5 10 10 14 15 15 13 Hackware 6 | . . . 6 4 12 18 5 5 5 5 5 5 10 10 10 10 10 Protection 4 | . 6 2 1 6 5 5 4 5 5 5 5 5 5 5 6 4 4 Energy Gun 6 | . 2 7 14 14 10 11 6 9 7 9 5 6 2 . . . 3 Energy Cannon 3 | . . 1 . . 3 . 9 6 8 4 4 4 10 9 . . 1 Ballistic Gun 4 | . 25 16 . . . . . . . . . 1 . 3 . 14 5 Ballistic Cannon 2 | . . 1 14 9 . . . . . . 5 3 . . . 5 1 Peak Build Rating 154 | 6 8 17 26 25 65 86 93 90 90 98 102 122 106 117 129 129 154 Average Rating 74 | 4 7 13 22 20 49 76 84 89 89 90 98 107 100 102 100 127 118 On Entrance 69 | . 6 8 15 20 19 62 86 90 90 88 98 102 102 99 117 127 128 Avg Prop Armor Cover (%) 7 | . . . . 12 9 5 5 . . . . 5 . . 9 1 5 Naked Turns . | . . . . . . . . . . . . . . . . . . Heaviest Build 169 | 11 50 58 63 63 80 115 166 139 144 148 149 166 157 152 141 148 169 Greatest Support 99 | 20 20 40 28 50 20 20 56 56 56 60 60 64 56 98 98 98 99 Greatest Overweight (x) 10 | . 2 2 2 6 7 5 5 2 2 3 3 4 6 2 1 1 10 Average Overweight (x) 2 | . 1 1 1 4 4 4 2 2 2 2 2 2 2 1 1 1 1 Largest Inventory Capacity 25 | 8 20 20 20 20 20 20 25 25 25 25 25 25 25 25 25 25 25 Average Capacity 22 | 7 19 20 20 19 20 20 22 25 25 25 25 25 25 25 25 25 18 Most Carried 25 | . 15 19 20 20 18 20 25 25 24 25 25 25 25 25 25 25 25 Average Carried 19 | . 8 15 15 18 14 17 19 24 24 24 24 22 24 23 24 24 17 Final Capacity 25 | 8 20 20 20 20 20 20 25 25 25 25 25 25 25 25 25 25 5 Final Carried 25 | . 14 13 17 16 16 18 25 24 24 25 24 25 25 25 25 25 4 Class Distribution -------------------- 26% | Mutant 15% | Skirmisher 13% | Scavenger-Skirmisher 8% | Derelict-Tank 7% | Scavenger-Mutant 6% | Hacker-Skirmisher 6% | Hacker-Mutant 6% | Hacker-Tank 3% | Hacker-Sprinter Dominant Class ---------------- Mutant | -10/Materials Scavenger-Mutant | -10/Subcaves Mutant | -7/Recycling Mutant | -7/Scraptown Hacker-Tank | -5/Factory Hacker-Tank | -5/Waste Skirmisher | -5/Factory Scavenger-Skirmisher | -5/Upper Caves Scavenger-Skirmisher | -5/Upper Caves Skirmisher | -5/Warlord Scavenger-Skirmisher | -4/Proximity Caves Skirmisher | -4/Factory Hacker-Skirmisher | -4/Upper Caves Hacker-Mutant | -4/Upper Caves Hacker-Mutant | -4/Zhirov Derelict-Tank | -3/Proximity Caves Hacker-Sprinter | -3/Research Resources | -11 -10 -10 -7 -7 -5 -5 -5 -5 -5 -5 -4 -4 -4 -4 -4 -3 -3 ----------- Run | Yrd Mat Sub Rec Scr Fac Was Fac Upp Upp War Pro Fac Upp Upp Zhi Pro Res Matter Collected 8750 | 233 901 633 156 153 164 351 933 108 387 278 151 1250 255 244 . 819 1734 Remotely . | . . . . . . . . . . . . . . . . . . Salvage Created 11506 | . 711 451 41 . 145 1082 1263 182 214 270 291 1873 582 698 . 719 2984 Parts 451 | . 47 33 2 . . 4 70 5 5 6 11 80 13 18 . 22 135 Haulers Intercepted 1 | . 1 . . . . . . . . . . . . . . . . Recyclers Shooed 10 | . 1 . . . . . 3 . . . . 3 . . . . 3 Parts Field Recycled . | . . . . . . . . . . . . . . . . . . Retrieved Matter . | . . . . . . . . . . . . . . . . . . Parts Self-Destructed 93 | . . 13 . . . . . 4 6 . 8 . 23 14 . 25 . Prevented 2 | . . . . . . . . . 2 . . . . . . . . Parts Restored . | . . . . . . . . . . . . . . . . . . Kills | -11 -10 -10 -7 -7 -5 -5 -5 -5 -5 -5 -4 -4 -4 -4 -4 -3 -3 ------- Run | Yrd Mat Sub Rec Scr Fac Was Fac Upp Upp War Pro Fac Upp Upp Zhi Pro Res Combat Hostiles Destroyed 183 | . 11 16 1 . 3 5 19 5 7 3 7 29 13 10 . 10 44 Guns 61 | . 11 13 . . 1 1 2 . 1 1 1 11 . . . 6 13 Cannons 62 | . . 3 1 . 1 . 15 2 2 1 2 13 9 8 . 4 1 AOE 48 | . . . . . . 4 2 2 4 . 4 4 3 . . . 25 Classes Destroyed 24 | . 8 2 1 . 2 1 4 . . 1 . . . 3 . . 2 Worker 19 | . 4 . . . . . 5 . . . . 2 . . . . 8 Builder 6 | . . . . . . . 2 . . . . . . . . . 4 Tunneler 2 | . . . . . . . . . . . . . . . . . 2 Hauler 1 | . 1 . . . . . . . . . . . . . . . . Recycler 7 | . 1 . . . . . 1 . . . . 3 . . . . 2 Minesweeper 1 | . . . . . . . . . . . . . . 1 . . . Mechanic 2 | . 1 . . . . . . . . . . . . . . . 1 Operator 2 | . 1 . . . . . 1 . . . . . . . . . . Turret 2 | . . 2 . . . . . . . . . . . . . . . Watcher 10 | . 3 . . . 1 . 1 . . . . 2 . . . . 3 Swarmer 36 | . 3 8 . . 1 . . 2 4 . 4 5 7 . . 2 . Grunt 48 | . 8 . . . . . 4 . . . 3 6 4 6 . 1 16 Brawler 8 | . . . . . . . 1 . . 2 . 3 . 1 . 1 . Duelist 3 | . . . . . . . . . . . . . . 1 . 2 . Protector 2 | . . . . . . . . . . 1 . . . . . 1 . Sentry 14 | . . . 1 . . . 2 1 1 . . 4 . 1 . 1 3 Specialist 2 | . . . . . . . . . . . . . . . . . 2 Hunter 31 | . . . . . 1 . 5 . 2 . . 4 2 . . 2 15 Programmer 23 | . . . . . 1 . 5 2 . . . 7 . . . . 8 Heavy 1 | . . . . . . . 1 . . . . . . . . . . Behemoth 1 | . . . . . . . 1 . . . . . . . . . . Compactor 5 | . . . . . . 5 . . . . . . . . . . . Subdweller 8 | . . 8 . . . . . . . . . . . . . . . Mutant 1 | . . . . . . . . . . . . . . 1 . . . Best Kill Streak 17 | . 4 3 1 . 1 3 7 5 4 2 4 5 4 6 . 4 17 Combat Bots Only 14 | . 3 3 1 . 1 3 4 5 4 2 4 4 4 6 . 4 14 Max Kills in Single Turn 5 | . 1 2 1 . 1 1 3 2 4 1 4 2 1 1 . 2 5 Gunslinging 1 | . . 1 . . . . . . . . . . . . . . . Exploded 4 | . . . . . . 1 2 2 4 . 4 2 1 . . . 4 Melee . | . . . . . . . . . . . . . . . . . . Uniques/NPCs Destroyed . | . . . . . . . . . . . . . . . . . . Combat | -11 -10 -10 -7 -7 -5 -5 -5 -5 -5 -5 -4 -4 -4 -4 -4 -3 -3 -------- Run | Yrd Mat Sub Rec Scr Fac Was Fac Upp Upp War Pro Fac Upp Upp Zhi Pro Res Hostile Shots Fired 1497 | . 43 100 9 . 15 . 125 48 35 5 23 264 107 69 . 24 630 Missed 488 | . 18 34 4 . 4 . 41 15 11 1 7 98 32 18 . 4 201 Hits 1009 | . 25 66 5 . 11 . 84 33 24 4 16 166 75 51 . 20 429 Melee 5 | . . . . . . . 1 . . . . 2 . 1 . 1 . Projectile 1004 | . 25 66 5 . 11 . 83 33 24 4 16 164 75 50 . 19 429 AOE 5 | . . 2 . . . . . . . . . 3 . . . . . Critical Strikes 42 | . 1 . . . 1 . 4 1 . . . 12 2 3 . . 18 Part Disruptions 3 | . . . . . . . . . . . . . . . . . 3 Damage Taken 20363 | . 308 1232 41 . 157 15 1526 796 424 234 250 3980 1323 1045 . 469 8563 Core 2179 | . 40 188 15 . 12 . 151 73 17 . 18 210 87 69 . 25 1274 Absorbed by Shields 446 | . . . . . 16 . 33 . . . . . . . . . 397 Reduced by Siege Mode 45 | . . . . . . . . . . . . . . 17 . 28 . Redirected to Shielding 120 | . . 1 . . . . . . . . . . . . . . 119 Ignored by Resistances 447 | . . . . . . . 447 . . . . . . . . . . Regen/Repaired (Parts) 332 | . . . . . 77 . 79 . . 176 . . . . . . . Core Remaining (%) 60 | 100 . . . 2 . . . . . . 72 . . . . 66 . Volleys Fired 736 | . 70 76 10 . 12 16 97 15 13 16 12 136 37 33 . 27 166 Largest 5 | . 2 2 1 . 2 2 3 3 3 3 3 4 3 3 . 4 5 Hottest 455 | . 60 93 40 . 170 119 260 260 260 250 228 285 455 244 . 151 244 Shots Fired 1510 | . 140 123 14 . 31 59 216 32 36 39 28 278 65 72 . 92 285 Gun 835 | . 140 99 4 . 22 44 78 13 12 23 8 122 6 5 . 68 191 Cannon 603 | . . 24 10 . 9 . 132 16 23 13 19 149 50 65 . 24 69 Launcher 65 | . . . . . . 15 4 3 1 . 1 7 8 2 . . 24 Special 7 | . . . . . . . 2 . . 3 . . 1 . . . 1 Kinetic 539 | . 137 78 10 . . . . . . . 8 83 . 5 . 92 126 Thermal 873 | . 3 45 4 . 31 44 210 29 35 36 19 173 64 65 . . 115 Explosive 54 | . . . . . . 15 4 3 1 . 1 6 . 2 . . 22 Electromagnetic 19 | . . . . . . . . . . . . . . . . . 19 Entropic 18 | . . . . . . . . . . . . 16 . . . . 2 Robot Hit Streak 23 | . 12 9 4 . 7 11 10 8 21 8 6 14 6 20 . 16 23 Robot Miss Streak 9 | . 5 3 3 . 9 5 8 3 3 3 2 5 4 1 . 3 2 Penetration Max 2 | . . . . . . . . . . . . 2 . . . 2 1 Secondary Targets 6 | . 2 3 . . . . . . . . . 1 . . . . . Max Gunslinging Chain 1 | . 1 1 . . . . . . . . . 1 . . . . . Capacitor 16 | . . . . . . . . . . . . . . . . . 16 Autonomous 49 | . . . 4 . 13 30 2 . . . . . . . . . . Shots Hit Robots 960 | . 85 60 11 . 21 53 138 22 23 28 14 143 34 55 . 63 210 Core Hits 512 | . 36 27 4 . 13 23 69 14 13 16 9 79 21 23 . 36 129 Critical Kills 19 | . . 1 . . . . . . . . 1 7 . 1 . 6 3 Critical Parts Destroyed 24 | . . . . . . . . . . . 1 5 . . . 11 7 Critical Strikes 51 | . . 4 . . . . . . . . 2 13 1 1 . 18 12 Burn 3 | . . . . . . . . . . . . 1 1 . . . 1 Meltdown 2 | . . . . . . . . . . . . 1 . 1 . . . Destroy 39 | . . 1 . . . . . . . . 2 9 . . . 18 9 Blast 3 | . . 3 . . . . . . . . . . . . . . . Smash 2 | . . . . . . . . . . . . . . . . . 2 Detonate 2 | . . . . . . . . . . . . 2 . . . . . Melee Attacks 47 | . . . . . . . . . . . . . . . . . 47 Impact 47 | . . . . . . . . . . . . . . . . . 47 Slashing . | . . . . . . . . . . . . . . . . . . Piercing . | . . . . . . . . . . . . . . . . . . Sneak Attacks . | . . . . . . . . . . . . . . . . . . Combat Hostiles . | . . . . . . . . . . . . . . . . . . Follow-up Attacks . | . . . . . . . . . . . . . . . . . . Damage Inflicted 35256 | . 1143 1196 280 . 431 2224 4650 798 967 579 611 6192 1755 2128 . 1215 11087 Guns 12532 | . 1143 981 60 . 286 819 1585 318 236 396 121 2293 66 46 . 915 3267 Cannons 11213 | . . 215 220 . 145 . 2537 296 430 183 213 2413 1052 1840 . 300 1369 Explosions 11172 | . . . . . . 1405 528 184 301 . 277 1486 637 242 . . 6112 Melee 339 | . . . . . . . . . . . . . . . . . 339 Ramming . | . . . . . . . . . . . . . . . . . . Kinetic 6909 | . 1132 860 220 . . . . . . . 85 1329 . 46 . 1215 2022 Thermal 16720 | . 11 336 60 . 431 819 4297 614 666 579 249 2906 1755 1840 . . 2157 Explosive 7260 | . . . . . . 1405 353 184 301 . 277 598 . 242 . . 3900 Electromagnetic 493 | . . . . . . . . . . . . 36 . . . . 457 Impact 339 | . . . . . . . . . . . . . . . . . 339 Slashing . | . . . . . . . . . . . . . . . . . . Piercing . | . . . . . . . . . . . . . . . . . . Entropic 3535 | . . . . . . . . . . . . 1323 . . . . 2212 Highest Corruption 20 | . . 6 6 . 1 16 17 20 20 20 . 8 2 2 2 2 9 Average Corruption 8 | . . 6 3 . 1 12 16 19 20 20 . 3 1 2 2 2 3 Corruption Purged 24 | . . . 4 . . . . . . . . 20 . . . . . Corruption Blocked 9 | . . . . . . . . . . . . . . . . . 9 Effects 373 | . . 18 18 . . 15 126 32 41 . . 30 18 27 5 18 25 Message Errors 71 | . . 2 3 . . 3 23 6 8 . . 8 4 7 1 3 3 Matter Fused 79 | . . 2 4 . . 4 27 10 7 . . 6 4 6 1 4 4 Heat Flow Errors 53 | . . 2 5 . . 1 14 8 10 . . 3 5 2 1 1 1 Energy Discharges 57 | . . 7 1 . . 2 18 1 7 . . 5 2 4 . 3 7 Parts Rejected 2 | . . . . . . . 1 . . . . 1 . . . . . Parts Fused 5 | . . 1 . . . . 4 . . . . . . . . . . Data Loss (minor) 52 | . . 3 4 . . . 21 6 3 . . 4 1 5 1 . 4 Data Loss (major) 25 | . . . 1 . . 2 7 . 3 . . . 1 . 1 5 5 Misfires 12 | . . . . . . 1 4 1 2 . . 2 1 1 . . . Alerts 5 | . . . . . . 1 1 . . . . . . 1 . 1 1 Misdirections 3 | . . . . . . . 3 . . . . . . . . . . Weapon Failures 9 | . . 1 . . . 1 3 . 1 . . 1 . 1 . 1 . Overload Shots . | . . . . . . . . . . . . . . . . . . Overflow Damage 1171 | . . . . . 27 . 111 43 52 . . 147 73 109 . . 609 Projectiles 424 | . . . . . 27 . 70 8 34 . . 131 20 109 . . 25 Explosions 583 | . . . . . . . 41 35 18 . . 16 53 . . . 420 Melee 164 | . . . . . . . . . . . . . . . . . 164 Knockbacks 16 | . . 3 . . . . . . . . . 5 . . . 4 4 Impact 4 | . . . . . . . . . . . . . . . . . 4 Kinetic 12 | . . 3 . . . . . . . . . 5 . . . 4 . Secondary . | . . . . . . . . . . . . . . . . . . Self-Inflicted Damage 324 | . . . . . . 17 . 78 . . . 83 . 55 . . 91 Shots 10 | . . . . . . 1 . 2 . . . 3 . 1 . . 3 Rammed . | . . . . . . . . . . . . . . . . . . Targets Rammed . | . . . . . . . . . . . . . . . . . . Kicked . | . . . . . . . . . . . . . . . . . . Crushed . | . . . . . . . . . . . . . . . . . . Highest Temperature 524 | . 22 253 336 . 321 216 360 248 200 150 236 429 524 114 . . 318 Average Temperature 103 | . 9 130 119 . 132 107 110 114 93 63 108 89 205 56 . . 69 Received Heat Transfer 2123 | . 186 120 18 . . . 175 81 27 21 . 475 147 256 . 27 590 Effects 9 | . . . 2 . . . 1 3 . . . . 3 . . . . Interference 4 | . . . . . . . 1 3 . . . . . . . . . Matter Decay 2 | . . . . . . . . . . . . . 2 . . . . Short Circuit 1 | . . . 1 . . . . . . . . . . . . . . Damage (minor) 2 | . . . 1 . . . . . . . . . 1 . . . . Siege Activations 4 | . . . . . . . . . . . . . . 1 . 3 . Total Turns 111 | . . . . . . . . . . . . . . 31 . 80 . Longest Duration 37 | . . . . . . . . . . . . . . 31 . 37 . Martial Activations . | . . . . . . . . . . . . . . . . . . Shielding Activations . | . . . . . . . . . . . . . . . . . . Robots Disrupted . | . . . . . . . . . . . . . . . . . . Combat Hostiles . | . . . . . . . . . . . . . . . . . . Robots Corrupted 3 | . . . . . . . . . . . . . . . . . 3 Combat Hostiles 2 | . . . . . . . . . . . . . . . . . 2 Parts Fried 3 | . . . . . . . . . . . . . . . . . 3 Impact Corruptions 4 | . . . . . . . . . . . . . . . . . 4 Robots Melted 11 | . . . . . 1 . . 1 . 1 . 1 1 2 . . 4 Combat Hostiles 10 | . . . . . 1 . . 1 . 1 . 1 1 2 . . 3 Parts Melted 59 | . . . . . 4 1 12 2 4 6 2 7 4 6 . 1 10 Heat Transferred 26858 | . 25 400 200 . 950 2400 6980 1036 1122 857 385 3857 2565 2275 . . 3806 Parts Sabotaged . | . . . . . . . . . . . . . . . . . . Parts Stolen . | . . . . . . . . . . . . . . . . . . Parts Stripped . | . . . . . . . . . . . . . . . . . . Power Chain Reactions . | . . . . . . . . . . . . . . . . . . Alert | -11 -10 -10 -7 -7 -5 -5 -5 -5 -5 -5 -4 -4 -4 -4 -4 -3 -3 ------- Run | Yrd Mat Sub Rec Scr Fac Was Fac Upp Upp War Pro Fac Upp Upp Zhi Pro Res Maximum Alert Level 4 | . . . . . . . 2 . . . . 4 . . . . 3 Low Security (%) 65 | 100 100 . 100 . 100 100 40 . . . . 53 . . . . 60 Level 1 7 | . . . . . . . 29 . . . . . . . . . . Level 2 13 | . . . . . . . 29 . . . . 8 . . . . 17 Level 3 10 | . . . . . . . . . . . . 25 . . . . 20 Level 4 2 | . . . . . . . . . . . . 12 . . . . . Level 5 . | . . . . . . . . . . . . . . . . . . High Security . | . . . . . . . . . . . . . . . . . . Max Security . | . . . . . . . . . . . . . . . . . . Peak Influence 1157 | . 188 . 40 . 135 118 581 . . . . 1157 . . . . 969 Initial 40 | . . . 40 . . 28 . . . . . . . . . . . Average 255 | . 74 . 3 . 55 52 288 . . . . 448 . . . . 302 Influence Increases 7868 | . 419 325 34 . 264 128 1403 100 160 105 175 1907 290 215 . 330 2013 Destroy 0b10 Robot/C 3980 | . 220 200 20 . 160 . 580 100 140 40 140 820 260 180 . 240 880 Destroy 0b10 Robot/NC 295 | . 55 . . . 5 . 65 . . 5 . 40 10 10 . 5 100 Destroy Leader 774 | . 58 20 . . 32 . 184 . 20 . 20 184 20 10 . 20 206 Allied During Kill 255 | . . . . . 19 . 69 . . . . 147 . . . 20 . Trap Triggered on 0b10 20 | . . . . . . . 10 . . . . 10 . . . . . Successful Hack 160 | . 25 . 12 . . . 79 . . . . 34 . . . . 10 Disable Machine 570 | . . . . . 15 . 165 . . . . 360 . . . . 30 Destroy Structure 1139 | . 1 . 2 . 18 128 236 . . . . 252 . . . . 502 Partial Spotted 60 | . . . . . . . . . . . . . . . . . 60 Lose Combat Pursuer 615 | . 60 105 . . 15 . 15 . . 60 15 60 . 15 . 45 225 Influence Decreases 6899 | . 395 263 120 . 182 210 848 534 261 105 195 752 1023 637 . 330 1044 Entered New Map 891 | . . 12 46 . . 54 . 206 24 20 20 . 428 81 . . . Time Decay 4628 | . 395 191 74 . 182 156 598 318 237 75 175 492 565 506 . 270 394 Lost Part 892 | . . 60 . . . . 40 10 . 10 . 192 30 50 . . 500 Lost Ally 160 | . . . . . . . 60 . . . . 40 . . . 60 . Purge Threat 328 | . . . . . . . 150 . . . . 28 . . . . 150 Squads Dispatched 52 | . 1 . . . 3 . 15 . . . . 11 . . . 1 21 Investigation 16 | . . . . . 1 . 4 . . . . 5 . . . . 6 Extermination 16 | . . . . . 1 . 4 . . . . 3 . . . . 8 Reinforcement 14 | . 1 . . . 1 . 4 . . . . 2 . . . . 6 Assault 3 | . . . . . . . . . . . . 1 . . . 1 1 Garrison 3 | . . . . . . . 3 . . . . . . . . . . Intercept . | . . . . . . . . . . . . . . . . . . Searches Triggered . | . . . . . . . . . . . . . . . . . . Construction Impeded 4 | . . . . . 1 . 1 . . . . . . . . . 2 Haulers Reinforced 2 | . . . . . . . 1 . . . . 1 . . . . . Active Scanning Responses . | . . . . . . . . . . . . . . . . . . Cargo Convoy Interrupts . | . . . . . . . . . . . . . . . . . . Stealth | -11 -10 -10 -7 -7 -5 -5 -5 -5 -5 -5 -4 -4 -4 -4 -4 -3 -3 --------- Run | Yrd Mat Sub Rec Scr Fac Was Fac Upp Upp War Pro Fac Upp Upp Zhi Pro Res Distress Signals 12 | . 2 . . . . . 1 . . . . 4 . . . . 5 Communications Jammed . | . . . . . . . . . . . . . . . . . . Distress Signals . | . . . . . . . . . . . . . . . . . . Times Spotted 322 | . 27 25 1 . 8 6 42 7 7 24 7 52 15 11 . 11 79 Peak Tracking Total 10 | . 4 6 1 . 4 3 5 5 4 7 4 8 4 7 . 6 10 Tactical Retreats 25 | . 2 4 . . 1 . 1 . . 1 1 3 . 1 . 3 8 Traps | -11 -10 -10 -7 -7 -5 -5 -5 -5 -5 -5 -4 -4 -4 -4 -4 -3 -3 ------- Run | Yrd Mat Sub Rec Scr Fac Was Fac Upp Upp War Pro Fac Upp Upp Zhi Pro Res Traps Triggered 6 | . . . . . 1 . 4 . . . . 1 . . . . . Indirectly 1 | . . . . . . . . . . . . 1 . . . . . Trap Hack Attempts . | . . . . . . . . . . . . . . . . . . Triggered . | . . . . . . . . . . . . . . . . . . Disarmed . | . . . . . . . . . . . . . . . . . . Reprogrammed 3 | . . . . . . . . . . . . 3 . . . . . Reused 2 | . . . . . . . 1 . . . . 1 . . . . . Traps Extracted . | . . . . . . . . . . . . . . . . . . Installed 2 | . . . . . . 1 1 . . . . . . . . . . Triggered 2 | . . . . . . . 1 . . . . 1 . . . . . Most Traps Carried 2 | . . . . 2 2 2 1 . . . . . . 1 1 . . Machines | -11 -10 -10 -7 -7 -5 -5 -5 -5 -5 -5 -4 -4 -4 -4 -4 -3 -3 ---------- Run | Yrd Mat Sub Rec Scr Fac Was Fac Upp Upp War Pro Fac Upp Upp Zhi Pro Res Machines Disabled 47 | . . 2 . . 1 . 11 2 . . . 24 4 1 . . 2 Max in Single Turn 4 | . . 1 . . . . 3 2 . . . 4 3 1 . . 1 Garrison Access 6 | . . . . . . . 1 . . . . 3 . . . . 2 Machines Repaired . | . . . . . . . . . . . . . . . . . . Machines Dismantled . | . . . . . . . . . . . . . . . . . . Machines Sabotaged . | . . . . . . . . . . . . . . . . . . Overloaded Fab Kills . | . . . . . . . . . . . . . . . . . . Hacking | -11 -10 -10 -7 -7 -5 -5 -5 -5 -5 -5 -4 -4 -4 -4 -4 -3 -3 --------- Run | Yrd Mat Sub Rec Scr Fac Was Fac Upp Upp War Pro Fac Upp Upp Zhi Pro Res Machines Accessed 97 | . 8 1 14 5 2 . 20 1 . 8 . 16 3 . 4 . 15 Terminals 31 | . 6 . 6 . 1 . 7 . . . . 6 1 . . . 4 Fabricators 7 | . . . . . . . 4 . . . . 2 . . . . 1 Repair Stations 2 | . . . . . 1 . 1 . . . . . . . . . . Recycling Units 22 | . 2 . 8 . . . 4 . . . . 4 . . . . 4 Scanalyzers 8 | . . . . . . . 3 . . . . 1 . . . . 4 Garrison Access 6 | . . . . . . . 1 . . . . 3 . . . . 2 Total Hacks 265 | . 25 1 30 30 4 . 51 1 . 12 . 49 11 . 17 . 34 Successful 179 | . 11 1 6 30 2 . 27 1 . 12 . 37 11 . 17 . 24 Failed 84 | . 14 . 24 . 2 . 23 . . . . 12 . . . . 9 Catastrophic 10 | . 1 . 2 . . . 5 . . . . 1 . . . . 1 Database Lockouts 2 | . . . . . . . 1 . . . . . . . . . 1 Manual 77 | . 18 . 2 . 4 . 20 . . . . 19 . . . . 14 Terminals 101 | . 22 . 12 . 2 . 22 . . . . 24 5 . . . 14 Fabricators 19 | . . . . . . . 9 . . . . 7 . . . . 3 Repair Stations 4 | . . . . . 2 . 2 . . . . . . . . . . Recycling Units 47 | . 3 . 18 . . . 8 . . . . 10 . . . . 8 Scanalyzers 18 | . . . . . . . 8 . . . . 3 . . . . 7 Garrison Access 9 | . . . . . . . 2 . . . . 5 . . . . 2 Terminal Hacks 104 | . 5 1 1 30 1 . 6 1 . 12 . 11 11 . 17 . 8 Record 51 | . . . . 29 . . . . . 7 . . 10 . 5 . . Part Schematic 4 | . . . . . . . . . . . . . . . 4 . . Robot Analysis 9 | . 3 . 1 . . . . . . . . 1 . . 4 . . Prototype ID Bank 8 | . . . . . . . . . . 4 . . . . 4 . . Open Door 3 | . . . . . . . . 1 . 1 . . 1 . . . . Branch Access Points 2 | . . . . . . . 1 . . . . 1 . . . . . Terminal Index 1 | . . . . . . . 1 . . . . . . . . . . Recycling Unit Index 2 | . . . . . . . . . . . . 1 . . . . 1 Alert Level 2 | . . . . . . . 1 . . . . . . . . . 1 Unreport Threat 3 | . . . . . . . 1 . . . . 1 . . . . 1 Locate Traps 7 | . 1 . . . . . 2 . . . . 3 . . . . 1 Reprogram Traps 1 | . . . . . . . . . . . . 1 . . . . . Recall Investigation 1 | . . . . . . . . . . . . 1 . . . . . Recall Extermination 1 | . . . . . . . . . . . . . . . . . 1 Recall Reinforcements 1 | . . . . . 1 . . . . . . . . . . . . Hauler Manifests 1 | . . . . . . . . . . . . . . . . . 1 Registered Components 3 | . 1 . . . . . . . . . . 1 . . . . 1 Registered Prototypes 2 | . . . . . . . . . . . . 1 . . . . 1 Proto ID Catalog 2 | . . 1 . 1 . . . . . . . . . . . . . Fabricator Hacks 9 | . . . . . . . 3 . . . . 5 . . . . 1 Network Status 5 | . . . . . . . 2 . . . . 2 . . . . 1 Load Schematic 1 | . . . . . . . . . . . . 1 . . . . . Build 3 | . . . . . . . 1 . . . . 2 . . . . . Repair Station Hacks 2 | . . . . . . . 2 . . . . . . . . . . Scan Component 1 | . . . . . . . 1 . . . . . . . . . . Repair 1 | . . . . . . . 1 . . . . . . . . . . Recycling Unit Hacks 12 | . 1 . 5 . . . 1 . . . . 4 . . . . 1 Report Inventory 1 | . . . . . . . . . . . . 1 . . . . . Retrieve Components 11 | . 1 . 5 . . . 1 . . . . 3 . . . . 1 Scanalyzer 14 | . . . . . . . 6 . . . . 3 . . . . 5 Insert Component 5 | . . . . . . . 3 . . . . . . . . . 2 Analyze 4 | . . . . . . . 2 . . . . . . . . . 2 Retrieve Study 5 | . . . . . . . 1 . . . . 3 . . . . 1 Garrison Access Hacks 6 | . . . . . . . 1 . . . . 3 . . . . 2 Seal Access 6 | . . . . . . . 1 . . . . 3 . . . . 2 Unauthorized Hacks 32 | . 5 . . . 1 . 8 . . . . 11 . . . . 7 Terminals 16 | . 5 . . . . . 4 . . . . 5 . . . . 2 Track 2 | . 1 . . . . . . . . . . . . . . . 1 Assimilate 1 | . . . . . . . . . . . . 1 . . . . . Botnet 9 | . 3 . . . . . 3 . . . . 3 . . . . . Operators 4 | . 1 . . . . . 1 . . . . 1 . . . . 1 Fabricators 3 | . . . . . . . . . . . . 2 . . . . 1 Report 1 | . . . . . . . . . . . . 1 . . . . . Fabnet 1 | . . . . . . . . . . . . 1 . . . . . Recompile 1 | . . . . . . . . . . . . . . . . . 1 Repair Stations 1 | . . . . . 1 . . . . . . . . . . . . Patch 1 | . . . . . 1 . . . . . . . . . . . . Recycling Units 12 | . . . . . . . 4 . . . . 4 . . . . 4 Fedlink 9 | . . . . . . . 3 . . . . 3 . . . . 3 Scrapoids 3 | . . . . . . . 1 . . . . 1 . . . . 1 Scanalyzers . | . . . . . . . . . . . . . . . . . . Garrison Access . | . . . . . . . . . . . . . . . . . . Data Cores Recovered . | . . . . . . . . . . . . . . . . . . Used . | . . . . . . . . . . . . . . . . . . Hacking Detections 57 | . 7 . 11 . 1 . 18 . . . . 11 . . . . 9 Full Trace Events 3 | . . . 1 . . . . . . . . 1 . . . . 1 Feedback Events 1 | . . . . . . . . . . . . . . . . . 1 Corruption 1 | . . . . . . . . . . . . . . . . . 1 Feedback Blocked . | . . . . . . . . . . . . . . . . . . Robot Schematics Acquired . | . . . . . . . . . . . . . . . . . . Robots Built . | . . . . . . . . . . . . . . . . . . Authchips . | . . . . . . . . . . . . . . . . . . Time . | . . . . . . . . . . . . . . . . . . Total Robot Build Rating . | . . . . . . . . . . . . . . . . . . Part Schematics Acquired 8 | . . . . . . . 2 . . . . . . . 4 . 2 Parts Built 6 | . . . . . . . 2 . . . . 4 . . . . . Authchips . | . . . . . . . . . . . . . . . . . . Time 318 | . . . . . . . 117 . . . . 201 . . . . . Total Part Build Rating 36 | . . . . . . . 14 . . . . 22 . . . . . Part Studies Acquired 5 | . . . . . . . 1 . . . . 3 . . . . 1 Parts Repaired 1 | . . . . . . . 1 . . . . . . . . . . Time 32 | . . . . . . . 32 . . . . . . . . . . Parts Recycled . | . . . . . . . . . . . . . . . . . . Recycled Matter . | . . . . . . . . . . . . . . . . . . Retrieved Matter . | . . . . . . . . . . . . . . . . . . Retrieved Components 34 | . 6 . 10 . . . 1 . . . . 7 . . . . 10 Parts Scanalyzed 4 | . . . . . . . 2 . . . . . . . . . 2 Part Schematics Acquired 4 | . . . . . . . 2 . . . . . . . . . 2 Parts Damaged . | . . . . . . . . . . . . . . . . . . Bothacking | -11 -10 -10 -7 -7 -5 -5 -5 -5 -5 -5 -4 -4 -4 -4 -4 -3 -3 ------------ Run | Yrd Mat Sub Rec Scr Fac Was Fac Upp Upp War Pro Fac Upp Upp Zhi Pro Res Used RIF Installer . | . . . . . . . . . . . . . . . . . . Robots Hacked 8 | . . . . . . . 1 . . 3 . . 1 . . 1 2 Non-combat . | . . . . . . . . . . . . . . . . . . Combat 8 | . . . . . . . 1 . . 3 . . 1 . . 1 2 Robot Hacks Applied 6 | . . . . . . . 1 . . 3 . . 1 . . . 1 parse_system 6 | . . . . . . . 1 . . 3 . . 1 . . . 1 Relay Couplers Released . | . . . . . . . . . . . . . . . . . . Fabnet Peak Effective % 3 | . . . . . . . . . . . . . . . . 3 3 Autooverrided 2 | . . . . . . . . . . . . . . . . 1 1 Robots Rewired 2 | . . . . . . . . . . . . . . . . 2 . Allies Hacked 2 | . . . . . . . 2 . . . . . . . . . . Hacks Repelled . | . . . . . . . . . . . . . . . . . . Allies | -11 -10 -10 -7 -7 -5 -5 -5 -5 -5 -5 -4 -4 -4 -4 -4 -3 -3 -------- Run | Yrd Mat Sub Rec Scr Fac Was Fac Upp Upp War Pro Fac Upp Upp Zhi Pro Res Total Allies 16 | . . . . 1 . . 5 . . . . 6 . . . 3 1 Largest Group 5 | . . . . 1 1 1 5 . . . . 5 . . . 2 1 Highest-Rated Group 235 | . . . . 67 67 67 235 . . . . 235 . . . 90 64 Highest-Rated Ally 67 | . . . . 67 67 67 67 . . . . 47 . . . 48 64 Total Orders . | . . . . . . . . . . . . . . . . . . Ally Attacks 216 | . . . . . 14 15 98 . . . . 74 . . . 15 . Total Damage 5725 | . . . . . 369 367 2807 . . . . 1742 . . . 440 . Kills 39 | . . . . . 5 1 16 . . . . 14 . . . 3 . Allies Corrupted 1 | . . . . . . . 1 . . . . . . . . . . Allies Melted 1 | . . . . . . . . . . 1 . . . . . . . Intel | -11 -10 -10 -7 -7 -5 -5 -5 -5 -5 -5 -4 -4 -4 -4 -4 -3 -3 ------- Run | Yrd Mat Sub Rec Scr Fac Was Fac Upp Upp War Pro Fac Upp Upp Zhi Pro Res Active Infowar (turns) 19063 | . 100 1619 . . 576 113 2479 686 922 1097 721 2362 1681 1984 409 1453 2861 Optics 689 | . . . . . 576 113 . . . . . . . . . . . Sensors 18374 | . 100 1619 . . . . 2479 686 922 1097 721 2362 1681 1984 409 1453 2861 Terrain 1581 | . . . . . . . . . . . . 1549 . . . . 32 Decoding 2 | . . . . . . . . . . . 2 . . . . . . Robot Analysis Total 9 | . 3 . 1 . . . . . . . . 1 . . 4 . . Derelict Logs Recovered 6 | . . . . 2 . . . . 1 . 2 . . 1 . . . Drone Launches . | . . . . . . . . . . . . . . . . . . Drone Recoveries . | . . . . . . . . . . . . . . . . . . Exploration | -11 -10 -10 -7 -7 -5 -5 -5 -5 -5 -5 -4 -4 -4 -4 -4 -3 -3 ------------- Run | Yrd Mat Sub Rec Scr Fac Was Fac Upp Upp War Pro Fac Upp Upp Zhi Pro Res Turns Passed 26730 | 43 1433 1891 952 3985 576 380 2878 707 922 1097 721 2362 1681 1984 409 1453 3256 Spaces Moved 16418 | 44 925 1291 696 2490 348 211 1790 481 681 803 522 1391 1109 740 156 498 2242 Core 122 | 3 . . . . . . . . . . . . . . . . 119 Treads 1696 | . . . . 2 . . . . . . . . . 740 156 498 300 Legs 55 | . . . . . . . . . . . . . . . . . 55 Wheels 13369 | 41 925 1291 696 2488 348 211 1790 481 681 803 522 1391 1109 . . . 592 Hover 1176 | . . . . . . . . . . . . . . . . . 1176 Flight . | . . . . . . . . . . . . . . . . . . Fastest Speed 24 | 50 80 105 115 80 125 125 110 124 124 124 126 112 120 240 240 250 24 Average Speed 133 | 77 108 112 118 154 140 148 122 124 124 124 126 123 128 241 246 250 90 Slowest Speed 320 | 80 110 130 130 170 185 155 155 124 124 144 144 145 170 320 250 250 320 Overloaded Moves . | . . . . . . . . . . . . . . . . . . Propulsion Burnouts . | . . . . . . . . . . . . . . . . . . Robots Hopped . | . . . . . . . . . . . . . . . . . . Potential Cave-ins 14 | . . 5 . . . . . . . . . 9 . . . . . Cave-ins Triggered 3 | . . 1 . . . . . . . . . 1 . . . . 1 Teleports 1 | . . . . . . . . . . . . . . . . . 1 Exploration Rate (%) 64 | 3 96 52 97 93 12 86 40 76 68 92 69 31 79 90 60 62 47 Regions Visited 17 Branch Regions 11 Pre-discovered Areas 13 | . . 1 . 6 . . 1 . . . 1 . . 1 3 . . Known Exits Taken 11 | . . . . 1 . . 1 1 1 1 1 1 1 1 1 1 . Unknown Exits Taken 4 | 1 1 1 1 . . . . . . . . . . . . . . Scrap Searched 23 | . . 8 . 4 . . . . 1 . 3 . 3 3 . 1 . Spaces Dug 110 | . . 7 . . 3 . 12 3 4 . 3 30 . . . . 48 Terrain Destroyed 925 | . . 8 2 . 5 137 85 57 33 2 29 137 48 45 . 16 321 Melee 34 | . . . . . . . . . . . . . . . . . 34 Projectile 242 | . . 8 2 . 5 . 42 7 10 2 13 80 17 11 . 14 31 AOE 646 | . . . . . . 137 43 50 23 . 16 57 31 34 . . 255 Terrain Rammed . | . . . . . . . . . . . . . . . . . . Walls Destroyed . | . . . . . . . . . . . . . . . . . . Machines Disabled . | . . . . . . . . . . . . . . . . . . Actions | -11 -10 -10 -7 -7 -5 -5 -5 -5 -5 -5 -4 -4 -4 -4 -4 -3 -3 --------- Run | Yrd Mat Sub Rec Scr Fac Was Fac Upp Upp War Pro Fac Upp Upp Zhi Pro Res Total 19988 | 49 1215 1597 820 2643 416 248 2290 568 736 880 568 1789 1303 875 182 646 3163 Wait 1972 | . 184 181 83 79 25 3 261 70 38 33 24 142 141 62 1 100 545 Move 16400 | 43 924 1289 695 2489 348 210 1789 480 680 802 521 1389 1108 739 155 497 2242 Hop . | . . . . . . . . . . . . . . . . . . Pick Up 167 | . 16 8 12 34 7 5 27 . . 6 . 18 4 8 4 3 15 Fast Attach 200 | 6 5 8 4 5 8 1 25 . 1 6 4 36 2 10 9 5 65 Attach 78 | . . 8 3 4 9 1 6 1 . 2 1 17 3 5 . 1 17 Detach 27 | . . 1 . 4 1 . 2 . . . . 7 1 3 . 2 6 Swap 87 | . 6 12 1 3 1 3 16 2 3 6 2 12 2 3 2 1 12 Drop 244 | . 10 13 12 25 5 8 42 . 1 9 4 31 5 12 11 8 48 Fire 736 | . 70 76 10 . 12 16 97 15 13 16 12 136 37 33 . 27 166 Melee 47 | . . . . . . . . . . . . . . . . . 47 Ram . | . . . . . . . . . . . . . . . . . . Kick . | . . . . . . . . . . . . . . . . . . Crush . | . . . . . . . . . . . . . . . . . . Escape Stasis 26 | . . 1 . . . . 24 . . . . 1 . . . . . Rewire 2 | . . . . . . . . . . . . . . . . 2 . Trap 2 | . . . . . . 1 1 . . . . . . . . . . Miscellaneous . | . . . . . . . . . . . . . . . . . . Route ------- -11/Scrapyard -10/Materials (discovered 5 exits: [*Mat x3] / [*Min] / *Sub) -10/Subcaves (discovered 3 exits: [*Mat] / *Rec / *Scr) -7/Recycling (discovered 2 exits: *Fac / *Scr) -7/Scraptown (discovered 2 exits: *Fac x2) -5/Factory (discovered 4 exits: Fac x2 / Upp x2) -5/Waste -5/Factory (discovered 3 exits: *Fac / *Upp x2) -5/Upper Caves -5/Upper Caves (discovered 2 exits: *Fac / *War) -5/Warlord -4/Proximity Caves -4/Factory (discovered 5 exits: *Res x2 / *Upp x2 / Arm) -4/Upper Caves -4/Upper Caves -4/Zhirov -3/Proximity Caves -3/Research (discovered 1 exit: *Res) History --------- Turn | Location | Event 7 | -11/Scrapyard | Discovered new exit (range 16) 44 | -11/Scrapyard | Entered Materials 226 | -10/Materials | Discovered new exit (range 6) 302 | -10/Materials | Build established: Mutant 851 | -10/Materials | Discovered new exit (range 16) 1188 | -10/Materials | Discovered new exit (range 5) 1295 | -10/Materials | Discovered new exit (range 6) 1466 | -10/Materials | Discovered new exit (range 4) 1477 | -10/Materials | Entered Subcaves 1478 | -10/Subcaves | Approached by a straggling Scientist 1849 | -10/Subcaves | A swath of the cavern ceiling suddenly collapsed 1993 | -10/Subcaves | Visited 4L-MR0's lab 2004 | -10/Subcaves | Found Gun Armor 2041 | -10/Subcaves | Build established: Scavenger-Mutant 2052 | -10/Subcaves | Core integrity fell below 50% 2110 | -10/Subcaves | Discovered new exit (range 5) 2645 | -10/Subcaves | Learned location of Zion (-6) 2645 | -10/Subcaves | Met a Zionite searching for "candidates" 2652 | -10/Subcaves | Crushed by falling debris 3119 | -10/Subcaves | Discovered new exit (range 15) 3233 | -10/Subcaves | Shifting Twisted Machinery released Flamer 3259 | -10/Subcaves | Core integrity fell below 20% 3291 | -10/Subcaves | Lost 5 parts (1p2n2w) 3368 | -10/Subcaves | Entered Recycling 3369 | -7/Recycling | Joined Warlord attack on 0b10 via Recycling 3553 | -7/Recycling | Build established: Mutant 4127 | -7/Recycling | Scanned before Scraplab entrance 4213 | -7/Recycling | Discovered new exit (range 16) 4306 | -7/Recycling | Entered Scraplab 4317 | -7/Recycling | Discovered new exit (range 3) 4320 | -7/Recycling | Entered Scraptown 4320 | -7/Scraptown | System corruption cleaned by C-Scrubber 4591 | -7/Scraptown | Discovered new exit (range 5) 4678 | -7/Scraptown | Scanned Subdweller tech in exchange for log data 4683 | -7/Scraptown | Learned location of Quarantine (-3) 4684 | -7/Scraptown | Learned location of Extension (-6) 4727 | -7/Scraptown | Visited Symbiants 4748 | -7/Scraptown | Visited CPS Storage 4759 | -7/Scraptown | Visited Red Mages 4985 | -7/Scraptown | Visited IN-MT5's Study 5018 | -7/Scraptown | Visited Assassins FH 5052 | -7/Scraptown | Visited SPCMW 5061 | -7/Scraptown | Visited TADAMA 5125 | -7/Scraptown | Visited UFD Registry 5125 | -7/Scraptown | Registered with UFD as "Microskull" 5165 | -7/Scraptown | Visited Science Testing Area 5195 | -7/Scraptown | Visited Research Penetration Think Tank 5229 | -7/Scraptown | Visited Science Guys 5439 | -7/Scraptown | Visited Scrap Suit Storage 5468 | -7/Scraptown | Visited Scrapoid Pod Storage 5501 | -7/Scraptown | Visited Junk Repository 5577 | -7/Scraptown | Visited Abandonware Association 5589 | -7/Scraptown | Learned abandonware demo "OVRCLOCK.EXE" 5594 | -7/Scraptown | Learned abandonware demo "HACKBUD.EXE" 5635 | -7/Scraptown | Visited Botcube Research 5672 | -7/Scraptown | Visited Cartography Club 5715 | -7/Scraptown | Found Surveybot 17 Chip 7328 | -7/Scraptown | Learned location of Storage (-7) 7328 | -7/Scraptown | Learned location of Recycling (-7) 7328 | -7/Scraptown | Learned 12 Materials zone layouts 7328 | -7/Scraptown | Learned 20 Factory zone layouts 7328 | -7/Scraptown | Learned 24 Upper Caves zone layouts 7328 | -7/Scraptown | Learned 4 Recycling zone layouts 7328 | -7/Scraptown | Learned 12 Proximity Caves zone layouts 7328 | -7/Scraptown | Learned 16 Proximity Caves zone layouts 7328 | -7/Scraptown | Learned Research emergency access door positions 7328 | -7/Scraptown | Learned location of 3 exits from Factory 7328 | -7/Scraptown | Learned location of 3 exits from Lower Caves 7328 | -7/Scraptown | Identified exit to Factory 7479 | -7/Scraptown | Found Scrap Suit 7984 | -7/Scraptown | Found Botcube 8013 | -7/Scraptown | Botcube activated 8035 | -7/Scraptown | Botcube completed mutation into legged form, armed with 2 cannons. 8209 | -7/Scraptown | Met Optimus 8209 | -7/Scraptown | Accepted into 0bPrime 8305 | -7/Scraptown | Entered Factory 8305 | -5/Factory | Accompanied by 1 ally 8305 | -5/Factory | Evolved 10 slots: Propulsion x2, Utility x7, Weapon x1 8306 | -5/Factory | Identified exit to Factory 8306 | -5/Factory | Identified exit to Upper Caves 8786 | -5/Factory | Build established: Hacker-Tank 8881 | -5/Factory | Sucked down chute 8881 | -5/Factory | Entered Waste 8881 | -5/Waste | Spotted C-40 Crusher 8896 | -5/Waste | EMP discharged 8897 | -5/Waste | Spotted C-40 Crusher 8901 | -5/Waste | 1 allies followed down the chute 8901 | -5/Waste | Allies destroyed C-40 Crusher 8912 | -5/Waste | Destroyed C-40 Crusher 8924 | -5/Waste | Spotted C-40 Crusher 8928 | -5/Waste | Destroyed C-40 Crusher 8943 | -5/Waste | Spotted C-40 Crusher 8944 | -5/Waste | Spotted C-40 Crusher 8953 | -5/Waste | Spotted C-40 Crusher 8960 | -5/Waste | Destroyed C-40 Crusher 8969 | -5/Waste | Destroyed C-40 Crusher 8976 | -5/Waste | Destroyed C-40 Crusher 8993 | -5/Waste | Found Damper Plating 8996 | -5/Waste | EMP discharged 8996 | -5/Waste | System corruption reached 10% 9096 | -5/Waste | EMP discharged 9155 | -5/Waste | Discovered new exit (range 12) 9196 | -5/Waste | EMP discharged 9261 | -5/Waste | Entered Factory 9261 | -5/Factory | Accompanied by 1 ally 9386 | -5/Factory | Loaded intel: 8 recycling unit locations 9557 | -5/Factory | Learned location of Protoforge (-3) 9917 | -5/Factory | Central database locked down 9940 | -5/Factory | Spotted B-75 Beast 9959 | -5/Factory | Destroyed B-75 Beast 10123 | -5/Factory | Fabricated Centrium Wheel (x2) 10265 | -5/Factory | Discovered exit to Factory (range 12) 10537 | -5/Factory | Build established: Skirmisher 11275 | -5/Factory | Scrapoid reinforcements arrived 11290 | -5/Factory | Garrison activated, responded to threat 11861 | -5/Factory | Lost 3 allies 11959 | -5/Factory | Found Imp. Powered Armor 12024 | -5/Factory | Repaired Arm. Wheel 12139 | -5/Factory | Entered Upper Caves 12140 | -5/Upper Caves | Identified exit to Upper Caves 12614 | -5/Upper Caves | Build established: Scavenger-Skirmisher 12846 | -5/Upper Caves | Entered another Upper Caves area 12970 | -5/Upper Caves | Discovered exit to Factory (range 8) 13315 | -5/Upper Caves | Learned Factory terminal intel 13378 | -5/Upper Caves | Attracted the attention of an 0b10 checkpoint 13625 | -5/Upper Caves | Build established: Skirmisher 13717 | -5/Upper Caves | Discovered new exit (range 5) 13726 | -5/Upper Caves | Identified exit to Warlord 13768 | -5/Upper Caves | Entered Warlord 13769 | -5/Warlord | Identified exit to Proximity Caves 13811 | -5/Warlord | System corruption cleaned by Quarantine Array 13990 | -5/Warlord | Visited the Vortex Lab 14006 | -5/Warlord | Warlord's base attacked by MAIN.C 14006 | -5/Warlord | Found Prototype Launcher 14008 | -5/Warlord | Found Prototype Energy Gun 14009 | -5/Warlord | Identified Vortex Rail 14015 | -5/Warlord | Found Vortex Rail 14356 | -5/Warlord | Warlord forces counterattacked 14380 | -5/Warlord | Spotted B-86 Titan 14418 | -5/Warlord | Lost 3 allies 14635 | -5/Warlord | Rebuked by Warlord 14681 | -5/Warlord | Warlord base infiltrated, sounded retreat 14729 | -5/Warlord | Build established: Scavenger-Skirmisher 14754 | -5/Warlord | Spotted Executioner 14812 | -5/Warlord | Spotted Striker 14814 | -5/Warlord | Spotted Striker 14819 | -5/Warlord | Spotted Striker 14857 | -5/Warlord | Lost 4 allies 14865 | -5/Warlord | Entered Proximity Caves 15234 | -4/Proximity Caves | Learned Research trap positions 15586 | -4/Proximity Caves | Entered Factory 15586 | -4/Factory | Evolved 2 slots: Utility x1, Weapon x1 15587 | -4/Factory | Loaded intel: 26 terminal locations 15998 | -4/Factory | Identified exit to Upper Caves 15998 | -4/Factory | Identified exit to Armory 16083 | -4/Factory | Build established: Skirmisher 16186 | -4/Factory | Discovered new exit (range 20) 16191 | -4/Factory | Spotted B-86 Titan 16437 | -4/Factory | Crushed by falling debris 16471 | -4/Factory | Loaded intel: 8 recycling unit locations 16843 | -4/Factory | Scrapoid reinforcements arrived 16846 | -4/Factory | Identified Vortex Catalyst Activator 16886 | -4/Factory | Lost 3 parts (2n1w) 16915 | -4/Factory | Discovered new exit (range 20) 17062 | -4/Factory | Lost 4 allies 17230 | -4/Factory | Lost 7 parts (2n2u3w) 17586 | -4/Factory | First assault squad dispatched 17592 | -4/Factory | Fabricated Quantum Reactor (x2) 17697 | -4/Factory | Lost 6 parts (2n2u2w) 17805 | -4/Factory | Fabricated Arm. Wheel (x2) 17948 | -4/Factory | Entered Upper Caves 18147 | -4/Upper Caves | Entered an active Warlord outpost 18166 | -4/Upper Caves | Learned Armory trap positions 18166 | -4/Upper Caves | Learned Research security intel 18166 | -4/Upper Caves | Learned Factory garrison access intel 18166 | -4/Upper Caves | Learned Extension terminal intel 18239 | -4/Upper Caves | Build established: Hacker-Skirmisher 18397 | -4/Upper Caves | Discovered new exit (range 11) 18408 | -4/Upper Caves | Identified exit to Upper Caves 19011 | -4/Upper Caves | Attracted the attention of an 0b10 base 19093 | -4/Upper Caves | Learned Research stockpile data 19093 | -4/Upper Caves | Learned Factory terminal intel 19093 | -4/Upper Caves | Learned Research garrison access intel 19093 | -4/Upper Caves | Learned Armory garrison access intel 19629 | -4/Upper Caves | Entered another Upper Caves area 19631 | -4/Upper Caves | Attracted the attention of an 0b10 checkpoint 19696 | -4/Upper Caves | Lost 5 parts (3n1u1w) 19992 | -4/Upper Caves | Build established: Hacker-Mutant 21052 | -4/Upper Caves | Build established: Hacker-Tank 21135 | -4/Upper Caves | Discovered new exit (range 8) 21150 | -4/Upper Caves | Identified exit to Zhirov 21368 | -4/Upper Caves | Attacked by a delusional Derelict stockpiling parts 21613 | -4/Upper Caves | Entered Zhirov 21614 | -4/Zhirov | Identified exit to Proximity Caves 21660 | -4/Zhirov | Met Zhirov 21715 | -4/Zhirov | Learned location of Testing (-2) 21715 | -4/Zhirov | Learned location of Command (-1) 21730 | -4/Zhirov | Zhirov requested help retrieving the SGEMP Prototype 21769 | -4/Zhirov | Found Alien Artifact 21769 | -4/Zhirov | Identified Integrated Dissipator 21769 | -4/Zhirov | Installed Integrated Dissipator, increased core heat dissipation (+20) 21802 | -4/Zhirov | Found Alien Artifact 21918 | -4/Zhirov | Build established: Hacker-Mutant 22022 | -4/Zhirov | Entered Proximity Caves 22023 | -3/Proximity Caves | Identified exit to Research 22143 | -3/Proximity Caves | Attracted the attention of an 0b10 outpost 22294 | -3/Proximity Caves | Build established: Derelict-Tank 23475 | -3/Proximity Caves | Entered Research 23475 | -3/Research | Evolved 2 slots: Power x1, Propulsion x1 23476 | -3/Research | Loaded intel: 75 trap records 23480 | -3/Research | Loaded intel: 4 garrison access locations 23801 | -3/Research | Loaded intel: 5 recycling unit locations 23896 | -3/Research | Attached Gun Armor, gained temporary slots: Weapon x2 24207 | -3/Research | Build established: Derelict-Executioner 24784 | -3/Research | Lost 15 parts (2p5n2u6w) 24831 | -3/Research | Lost 3 parts (1p2n) 24831 | -3/Research | Central database locked down 25015 | -3/Research | Build established: Scavenger-Mutant 25496 | -3/Research | Lost 8 parts (1p2n1u4w) 25501 | -3/Research | Destroyed 14 combat bots 25618 | -3/Research | Core integrity fell below 50% 25676 | -3/Research | Destroyed 7 combat bots 25713 | -3/Research | Lost 13 parts (1p5n3u4w) 25718 | -3/Research | Identified Transdimensional Reconstructor 25718 | -3/Research | Warped through subspace 25975 | -3/Research | First assault squad dispatched 26007 | -3/Research | Found Unknown Launcher 26007 | -3/Research | Identified Fusion Bomb Launcher 26076 | -3/Research | Found Unknown Device 26076 | -3/Research | Identified Quantum Capacitor 26099 | -3/Research | Build established: Hacker-Sprinter 26102 | -3/Research | Found Prototype Launcher 26102 | -3/Research | Identified Adv. Micro-nuke Launcher 26253 | -3/Research | Discovered new exit (range 4) 26254 | -3/Research | Identified exit to Research 26366 | -3/Research | Local machine network offline 26597 | -3/Research | Crushed by falling debris 26597 | -3/Research | Core integrity fell below 20% 26668 | -3/Research | Found Prototype Device 26668 | -3/Research | Identified Exp. Shield Generator 26731 | -3/Research | Destroyed by P-80 Master with Gamma Rifle Last Messages --------------- 26718_ Linear Gravjet destroyed. 26719_ P-80 Master IFF system glitched. 26719_ Penetrated by Slug. 26719_ Slug penetrates Wall. 26719_ H-77 Assassin destroyed. 26720_ Particle Reactor destroyed. 26720_ Penetrated by Slug. 26720_ Slug penetrates Wall. 26721_ Penetrated by Slug. 26721_ Imp. Linear Gravjet destroyed. 26721_ Destroyed Unknown Device. 26721_ H-77 Assassin destroyed. 26722_ Linear Gravjet destroyed. 26725_ Slug penetrates Wall. 26725_ Destroyed Unknown Device. 26728_ Penetrated by Slug. 26728_ Slug penetrates Wall. 26729_ P-80 Master resets P-80 Master, system corruption cleaned. 26731_ The unstable cave ceiling collapses. Map ----- +----------------------------------------------------+ | ????# """" # # # #=???? | | ????# """" # + + #????? | | ????# # # # #????? | | ????# # #### # #????? | | ????# # #??########## #????^ | | #####+#####+###### #???????????# #????? | | ## #######+######??????###########????? | | ## # #?????????????????????? | | """ + # #?????????????????????? | | "Y" # + #?????????????????????? | | " " + # #?????????????????????? | | ## # = #?????????????????????? | | ## #####+########?????????????????????? | | # # #????????????????????????? | | ####+### # #????????????????????????? | | ??# # #????????????????????????? | | ??#|= h ] #????????????????????????? | | ??#!% # #????????????????????????? | | ??##%### # #????????????????????????? | | ???# #?# h # !! #????????????????????????? | | ???#=#?### ### ! ###?###??????????????????? | | ???# #???# k #?# !! t # ### # ##???????????????? | | ???# #???# #?########## ?????????????? | | ???# #???# % #?????????##;####### ##???????????? | | ####+##### ##????????## # # #???????????? | | # # ###########@ # #?#?###?????? | | # # R## ! p # ? !!! ?????? | | # ! + %% p n # %# # !!! ????? | | # # ## # # !!! ????? | | # # # # # #???? | | ########### ## # % # #???? | | ########### # # # #?!?? | | # ## # # #???? | | # # ## % #???? | | # #### # # #???? | | """ # ## ##### u #####+##????? | | """ # | ????^^ | | """ + !! h ???^ | | """ # !!! % ???^ | | """ + !!! % ???^^ | | """ ####+### | #######+# ##????? | | """ #? # # # #?????? | | ## # # ## # *%=#?????? | | ## # ###? #??= #?????? | | ############ # #??? #??? ??????? | | ???????????# # #??? * #??????????? | | ???????????# # #??? #??????????? | | ???????????# # #??? ! ?#??????????? | | ???????????# # #??? ????????????? | | ???????????# # #???? ????????????? | +----------------------------------------------------+ Best States ------------- Heat Dissipation 105 Coolant Potential 100 Energy Generation 43 Energy Capacity 590 Matter Stores 300 Matter Capacity 600 Sight Range 22 Robot Scan Range 18 Terrain Scan Range 20 Terrain Scan Density 1210 Base Temperature (-) 200 Corruption Block 9 Armor Coverage 1600 Resistance: EX 25 Resistance: EM 90 Core Shielding 40 Weapon Cycling 20 Phase Shifting 5 Evasion (%) 60 Targeting Accuracy 8 Launcher Accuracy 40 Core Analysis 6 Recoil Reduction 9 Particle Charging 25 Offensive Hacking 30 Defensive Hacking 26 Item Schematics ----------------- Arm. Wheel | -5/Factory | Scanalyzed Graphene Brace | -5/Factory | Scanalyzed Assault Drone Bay | -4/Zhirov | Free Exp. Heat Sink | -4/Zhirov | Free Exp. Optical Array | -4/Zhirov | Free Imp. Arc Thrower | -4/Zhirov | Free Linear Gravjet | -3/Research | Scanalyzed Enh. Nova Cannon | -3/Research | Scanalyzed Robot Schematics ------------------ None Fabricated ------------ Centrium Wheel | x2 | -5/Factory | Preloaded Quantum Reactor | x2 | -4/Factory | Preloaded Arm. Wheel | x2 | -4/Factory Repaired ---------- Arm. Wheel | 21% | -5/Factory Studied --------- Wheel | -5/Factory | Hacked Centrium Wheel | -4/Factory | Hacked Arm. Wheel | -4/Factory | Hacked Imp. Remote Datajack | -4/Factory | Hacked Plasma Rifle | -3/Research | Hacked Alien Tech Used ----------------- Integrated Dissipator Transdimensional Reconstructor Achievements -------------- Analysis Probe Bending The Rules Protector Challenges ------------ None Game ------ Seed TractorSchematicBasin Manual? 0 Play Time 04:26:11 Cumulative 166.6 hours Start 2025.12.07 @ 23:27:24 End 2025.12.08 @ 16:41:44 Sessions 5 Manual Loads 0 Difficulty Rogue Special Mode None Game No. 95 Rogue 95 Adventurer 0 Explorer 0 Win Type - Total 1 Types 1/0/0/0/0/0/0/0/0/0 Lore% 70 Gallery% 63 Achievement% 52 Wizard Run 0 Options --------- Layout 1 ASCII 0 Keyboard 0 Movement Mouse Keybinds 0 Fullscreen 2 Font 32/SmallcapsGlow Map View 50x35 Zoom Use 0% Tactical HUD 1 Map Filters NONE Filters NONE Steam 1 RUN: 57b7ee62-dd89-48c3-b2a1-a46e085e7112